Cogmind - Beta 11 @@@ ROGUE MODE // 2022.03.26 @ 13:24:49 Player: raddakar Result: Self-destructed Performance ------------- Evolutions (2) 1000 Regions Visited (5) 1000 Robots Destroyed (44) 220 Value Destroyed (1297) 1297 Prototype IDs (29) 580 Alien Tech Used (0) 0 Bonus (328) 328 TOTAL SCORE: 4425 Bonus ------- High Alert Combat Kills 28 Aligned with FarCom 300 Cogmind --------- Core Integrity 326/550 Matter 216/300 Energy 300/300 System Corruption 1% Temperature Danger (456) Movement Rolling (120) Ox2 Location -8/Materials Parts ------- > --- POWER (1) -------- Enhanced Nuclear Core > --- PROPULSION (3) --- Armored Wheel > --- UTILITY (4) ------ Large Storage Unit > --- WEAPON (3) ------- Advanced Beam Cannon > --- INVENTORY (15) --- Enhanced Nuclear Core Large Storage Unit High-capacity Storage Unit Superbattery (1500) High-capacity Matter Pod (200) Spread Laser Peak State ------------ > --- POWER ------------ Enhanced Nuclear Core > --- PROPULSION ------- Light Treads Light Treads Armored Wheel > --- UTILITY ---------- Improved Heat Sink Improved Heat Sink Large Storage Unit Hardened Medium Armor Plating > --- WEAPON ----------- Improved EM Shotgun Shock Rifle Minigun > --- INVENTORY -------- Enhanced Nuclear Core Enhanced Nuclear Core Armored Wheel Armored Wheel Armored Wheel Large Storage Unit High-capacity Storage Unit Superbattery High-capacity Matter Pod Improved Light Armor Plating Improved Light Armor Plating Heavy EM Pulse Gun Improved EM Shotgun Spread Laser Advanced Beam Cannon [Rating: 32] Favorites ----------- Power Ion Engine Engine Ion Engine Power Core Enhanced Nuclear Core Propulsion Light Treads Treads Light Treads Leg Aluminum Leg Wheel Armored Wheel Utility Heat Sink Device Heat Sink Storage Large Storage Unit Protection Hardened Medium Armor Plating Weapon Advanced Beam Cannon Energy Gun Improved EM Shotgun Energy Cannon Advanced Beam Cannon Ballistic Gun Autogun Ballistic Cannon Light Cannon Build | -11 -10 -10 -10 -9 -8 ------- Run | Scr Mat Min Exi Min Mat Slots Evolved 4 | . . . . . 4 Power . | . . . . . . Propulsion 1 | . . . . . 1 Utility 2 | . . . . . 2 Weapon 1 | . . . . . 1 Parts Attached 51 | . 12 . . 2 37 Power 5 | . 2 . . . 3 Engine 2 | . 2 . . . . Core 3 | . . . . . 3 Reactor . | . . . . . . Propulsion 11 | . 2 . . . 9 Treads 7 | . 1 . . . 6 Leg . | . . . . . . Wheel 4 | . 1 . . . 3 Hover . | . . . . . . Flight . | . . . . . . Utility 16 | . 3 . . 2 11 Device 10 | . 2 . . 1 7 Storage 2 | . 1 . . 1 . Processor . | . . . . . . Hackware . | . . . . . . Protection 4 | . . . . . 4 Artifact . | . . . . . . Weapon 19 | . 5 . . . 14 Energy Gun 10 | . 3 . . . 7 Energy Cannon 6 | . 2 . . . 4 Ballistic Gun 2 | . . . . . 2 Ballistic Cannon 1 | . . . . . 1 Launcher . | . . . . . . Special Weapon . | . . . . . . Impact Weapon . | . . . . . . Slashing Weapon . | . . . . . . Piercing Weapon . | . . . . . . Special Melee Weapon . | . . . . . . Unidentified Prototypes 4 | . 1 . . . 3 Corrupted Parts 1 | . 1 . . . . System Corruption 8 | . 8 . . . . Parts Lost 17 | . 1 . . . 16 Power 1 | . . . . . 1 Propulsion 5 | . . . . . 5 Utility 6 | . 1 . . . 5 Weapon 5 | . . . . . 5 Highest Loss Streak 16 | . 1 . . . 16 To Critical Strikes . | . . . . . . Average Slot Usage (%) 98 | . 97 100 100 99 98 Engine 7 | . 14 14 14 14 1 Core 3 | . . . . . 7 Treads 14 | . 11 14 14 14 17 Leg 1 | . 5 . . . . Wheel 10 | . 11 14 14 14 9 Device 14 | . 12 14 14 13 17 Storage 11 | . 14 14 14 14 9 Protection 4 | . . . . . 8 Energy Gun 10 | . 14 . . . 12 Energy Cannon 14 | . 12 28 28 28 10 Ballistic Gun 2 | . . . . . 3 Naked Turns . | . . . . . . Heaviest Build 48 | 13 34 34 34 34 48 Greatest Support 20 | 20 20 12 12 12 12 Greatest Overweight (x) 3 | . 2 2 2 2 3 Average Overweight (x) 2 | . . 2 2 2 2 Largest Inventory Capacity 15 | 8 15 15 15 15 15 Average Capacity 13 | 8 10 15 15 15 15 Most Carried 15 | 6 14 14 15 15 15 Average Carried 12 | 6 8 14 14 14 14 Final Capacity 15 | 8 15 15 15 15 15 Final Carried 15 | 6 14 14 15 15 6 Class Distribution -------------------- 52% | Mutant 46% | Skirmisher Dominant Class ---------------- Mutant | -10/Materials Mutant | -10/Mines Mutant | -10/Exiles Mutant | -9/Mines Skirmisher | -8/Materials Resources | -11 -10 -10 -10 -9 -8 ----------- Run | Scr Mat Min Exi Min Mat Matter Collected 985 | 200 144 . . 216 425 Remotely . | . . . . . . Salvage Created 2066 | . 577 . . 75 1414 Parts 91 | . 26 . . 4 61 Haulers Intercepted 1 | . . . . . 1 Recyclers Shooed 4 | . 1 . . 1 2 Parts Field Recycled . | . . . . . . Retrieved Matter . | . . . . . . Parts Self-Destructed . | . . . . . . Prevented . | . . . . . . Kills | -11 -10 -10 -10 -9 -8 ------- Run | Scr Mat Min Exi Min Mat Combat Hostiles Destroyed 35 | . 9 . . 3 23 Guns 15 | . 3 . . . 12 Cannons 12 | . 1 . . 3 8 AOE 2 | . 2 . . . . Classes Destroyed 9 | . 4 . . . 5 Worker 2 | . 1 . . 1 . Hauler 1 | . . . . . 1 Recycler 5 | . 2 . . . 3 Watcher 1 | . . . . . 1 Swarmer 9 | . 1 . . 3 5 Grunt 19 | . 8 . . . 11 Duelist 1 | . . . . . 1 Sentry 5 | . . . . . 5 Heavy 1 | . . . . . 1 Best Kill Streak 5 | . 3 . . 3 5 Combat Bots Only 4 | . 3 . . 3 4 Max Kills in Single Turn 2 | . 2 . . 1 1 Gunslinging . | . . . . . . Exploded 1 | . 1 . . . . Melee . | . . . . . . Uniques/NPCs Destroyed . | . . . . . . Combat | -11 -10 -10 -10 -9 -8 -------- Run | Scr Mat Min Exi Min Mat Damage Taken 2813 | . 499 . . 106 2208 Core 274 | . 41 . . 9 224 Absorbed by Shields . | . . . . . . Core Remaining (%) 90 | 100 . . . 80 . Volleys Fired 100 | . 31 . . 13 56 Largest 3 | . 2 . . 2 3 Hottest 163 | . 90 . . 136 163 Shots Fired 235 | . 64 . . 15 156 Gun 140 | . 62 . . . 78 Cannon 95 | . 2 . . 15 78 Launcher . | . . . . . . Special . | . . . . . . Kinetic 29 | . . . . . 29 Thermal 95 | . 2 . . 15 78 Explosive . | . . . . . . Electromagnetic 111 | . 62 . . . 49 Robot Hit Streak 19 | . 5 . . 2 19 Robot Miss Streak 4 | . 3 . . 3 4 Penetration Max . | . . . . . . Secondary Targets 3 | . 2 . . . 1 Max Gunslinging Chain 1 | . 1 . . . 1 Shots Hit Robots 139 | . 37 . . 7 95 Core Hits 60 | . 11 . . 4 45 Critical Kills 4 | . . . . . 4 Critical Parts Destroyed . | . . . . . . Critical Strikes 5 | . 1 . . . 4 Meltdown 4 | . . . . . 4 Corrupt 1 | . 1 . . . . Melee Attacks . | . . . . . . Impact . | . . . . . . Slashing . | . . . . . . Piercing . | . . . . . . Sneak Attacks . | . . . . . . Combat Hostiles . | . . . . . . Follow-up Attacks . | . . . . . . Damage Inflicted 2661 | . 687 . . 163 1811 Guns 1386 | . 596 . . . 790 Cannons 1148 | . 21 . . 163 964 Explosions 122 | . 70 . . . 52 Melee . | . . . . . . Ramming 5 | . . . . . 5 Kinetic 217 | . . . . . 217 Thermal 1270 | . 91 . . 163 1016 Explosive . | . . . . . . Electromagnetic 1169 | . 596 . . . 573 Impact . | . . . . . . Slashing . | . . . . . . Piercing . | . . . . . . Highest Corruption 8 | . 8 8 8 8 1 Average Corruption 4 | . 8 8 8 8 1 Corruption Purged . | . . . . . . Corruption Blocked . | . . . . . . Effects 50 | . 24 1 10 7 8 Message Errors 6 | . 2 . 2 . 2 Matter Fused 12 | . 7 . 3 1 1 Heat Flow Errors 9 | . 5 . 3 1 . Energy Discharges 3 | . . . 1 1 1 Data Loss (minor) 10 | . 4 1 1 2 2 Data Loss (major) 3 | . 2 . . 1 . Misfires 7 | . 4 . . 1 2 Overload Shots . | . . . . . . Overflow Damage 10 | . . . . . 10 Projectiles 10 | . . . . . 10 Explosions . | . . . . . . Melee . | . . . . . . Knockbacks . | . . . . . . Impact . | . . . . . . Kinetic . | . . . . . . Secondary . | . . . . . . Self-Inflicted Damage 2 | . . . . . 2 Shots . | . . . . . . Rammed 2 | . 1 . . . 1 Targets Rammed 2 | . 1 . . . 1 Kicked . | . . . . . . Crushed . | . . . . . . Highest Temperature 459 | . 369 . 268 267 459 Average Temperature 137 | . 137 . 125 51 156 Received Heat Transfer 912 | . 273 . . . 639 Effects 11 | . 2 . . . 9 Shutdowns 2 | . . . . . 2 Energy Bleed 2 | . 1 . . . 1 Interference 1 | . 1 . . . . Matter Decay 1 | . . . . . 1 Damage (minor) 1 | . . . . . 1 Damage (major) 4 | . . . . . 4 Siege Activations . | . . . . . . Robots Corrupted 3 | . 3 . . . . Combat Hostiles 3 | . 3 . . . . Parts Fried 4 | . 1 . . . 3 Impact Corruptions . | . . . . . . Robots Melted 4 | . . . . . 4 Combat Hostiles 3 | . . . . . 3 Parts Melted 12 | . . . . 1 11 Heat Transferred 2222 | . 137 . . 296 1789 Parts Sabotaged . | . . . . . . Parts Stolen . | . . . . . . Parts Stripped . | . . . . . . Power Chain Reactions 3 | . 2 . . . 1 Missiles Intercepted . | . . . . . . Alert | -11 -10 -10 -10 -9 -8 ------- Run | Scr Mat Min Exi Min Mat Peak Influence 466 | . 180 1 . 75 466 Initial 29 | . . 1 . . 29 Average 165 | . 82 1 . 34 242 Maximum Alert Level 2 | . . . . . 2 Low Security (%) 66 | 100 100 100 . 100 39 Level 1 32 | . . . . . 58 Level 2 1 | . . . . . 1 Level 3 . | . . . . . . Level 4 . | . . . . . . Level 5 . | . . . . . . High Security . | . . . . . . Max Security . | . . . . . . Squads Dispatched 8 | . 4 . . . 4 Investigation . | . . . . . . Extermination . | . . . . . . Reinforcement 7 | . 4 . . . 3 Assault . | . . . . . . Garrison 1 | . . . . . 1 Intercept . | . . . . . . Searches Triggered . | . . . . . . Construction Impeded . | . . . . . . Haulers Reinforced . | . . . . . . Active Scanning Responses . | . . . . . . Cargo Convoy Interrupts . | . . . . . . Stealth | -11 -10 -10 -10 -9 -8 --------- Run | Scr Mat Min Exi Min Mat Distress Signals 3 | . 1 . . . 2 Communications Jammed . | . . . . . . Distress Signals . | . . . . . . Times Spotted 78 | . 20 . . 3 55 Peak Tracking Total 9 | . 3 . . 3 9 Tactical Retreats 2 | . . . . . 2 Traps | -11 -10 -10 -10 -9 -8 ------- Run | Scr Mat Min Exi Min Mat Traps Triggered 1 | . . . . . 1 Indirectly . | . . . . . . Trap Hack Attempts . | . . . . . . Triggered . | . . . . . . Disarmed . | . . . . . . Reprogrammed . | . . . . . . Reused . | . . . . . . Traps Extracted . | . . . . . . Installed . | . . . . . . Triggered . | . . . . . . Machines | -11 -10 -10 -10 -9 -8 ---------- Run | Scr Mat Min Exi Min Mat Machines Disabled . | . . . . . . Max in Single Turn . | . . . . . . Machines Sabotaged . | . . . . . . Garrisons Compromised . | . . . . . . Overloaded Fab Kills . | . . . . . . Hacking | -11 -10 -10 -10 -9 -8 --------- Run | Scr Mat Min Exi Min Mat Machines Accessed 7 | . 1 . 1 . 5 Terminals 5 | . 1 . . . 4 Fabricators . | . . . . . . Repair Stations . | . . . . . . Recycling Units . | . . . . . . Scanalyzers 1 | . . . . . 1 Garrison Access . | . . . . . . Total Hacks 23 | . 2 . 1 . 20 Successful 21 | . 2 . 1 . 18 Failed 2 | . . . . . 2 Catastrophic . | . . . . . . Database Lockouts . | . . . . . . Manual 1 | . . . 1 . . Terminals 13 | . 2 . . . 11 Fabricators . | . . . . . . Repair Stations . | . . . . . . Recycling Units . | . . . . . . Scanalyzers 9 | . . . . . 9 Garrison Access . | . . . . . . Terminal Hacks 13 | . 2 . 1 . 10 Prototype ID Bank 1 | . . . . . 1 Emergency Access Points 3 | . . . . . 3 Alert Level 2 | . . . . . 2 Locate Traps 2 | . 1 . . . 1 Maintenance Status 2 | . 1 . . . 1 Recall Investigation 1 | . . . . . 1 Zone Layout 1 | . . . . . 1 EX-Prototype ID Bank 1 | . . . 1 . . Fabricator Hacks . | . . . . . . Repair Station Hacks . | . . . . . . Recycling Unit Hacks . | . . . . . . Scanalyzer 8 | . . . . . 8 Insert Component 4 | . . . . . 4 Analyze 4 | . . . . . 4 Garrison Access Hacks . | . . . . . . Unauthorized Hacks . | . . . . . . Terminals . | . . . . . . Fabricators . | . . . . . . Repair Stations . | . . . . . . Recycling Units . | . . . . . . Scanalyzers . | . . . . . . Garrison Access . | . . . . . . Data Cores Recovered . | . . . . . . Used . | . . . . . . Hacking Detections 5 | . 1 . . . 4 Full Trace Events . | . . . . . . Feedback Events . | . . . . . . Feedback Blocked . | . . . . . . Robot Schematics Acquired . | . . . . . . Robots Built . | . . . . . . Authchips . | . . . . . . Time . | . . . . . . Total Robot Build Rating . | . . . . . . Part Schematics Acquired 3 | . . . . . 3 Parts Built . | . . . . . . Authchips . | . . . . . . Time . | . . . . . . Total Part Build Rating . | . . . . . . Parts Repaired . | . . . . . . Time . | . . . . . . Parts Recycled . | . . . . . . Recycled Matter . | . . . . . . Retrieved Matter . | . . . . . . Retrieved Components . | . . . . . . Parts Scanalyzed 3 | . . . . . 3 Part Schematics Acquired 3 | . . . . . 3 Parts Damaged . | . . . . . . Bothacking | -11 -10 -10 -10 -9 -8 ------------ Run | Scr Mat Min Exi Min Mat Used RIF Installer . | . . . . . . Robots Hacked . | . . . . . . Non-combat . | . . . . . . Combat . | . . . . . . Robot Hacks Applied . | . . . . . . Relay Couplers Released . | . . . . . . Fabnet Peak Effective % . | . . . . . . Robots Rewired . | . . . . . . Allies Hacked . | . . . . . . Hacks Repelled . | . . . . . . Allies | -11 -10 -10 -10 -9 -8 -------- Run | Scr Mat Min Exi Min Mat Total Allies . | . . . . . . Largest Group . | . . . . . . Highest-Rated Group . | . . . . . . Highest-Rated Ally . | . . . . . . Total Orders . | . . . . . . Ally Attacks . | . . . . . . Total Damage . | . . . . . . Kills . | . . . . . . Allies Corrupted . | . . . . . . Allies Melted . | . . . . . . Intel | -11 -10 -10 -10 -9 -8 ------- Run | Scr Mat Min Exi Min Mat Robot Analysis Total . | . . . . . . Derelict Logs Recovered . | . . . . . . Drone Launches . | . . . . . . Drone Recoveries . | . . . . . . Exploration | -11 -10 -10 -10 -9 -8 ------------- Run | Scr Mat Min Exi Min Mat Turns Passed 2846 | 5 850 24 341 240 1386 Spaces Moved 1829 | 1 527 21 284 175 821 Core . | . . . . . . Treads 178 | . 178 . . . . Legs 109 | 1 108 . . . . Wheels 1542 | . 241 21 284 175 821 Hover . | . . . . . . Flight . | . . . . . . Fastest Speed 105 | 120 120 120 120 120 105 Average Speed 130 | 120 134 120 120 120 134 Slowest Speed 240 | 120 240 120 120 120 135 Overloaded Moves . | . . . . . . Propulsion Burnouts . | . . . . . . Robots Hopped . | . . . . . . Cave-ins Triggered . | . . . . . . Exploration Rate (%) 36 | 2 58 8 62 38 52 Regions Visited 5 Branch Regions 3 Pre-discovered Areas . | . . . . . . Known Exits Taken . | . . . . . . Unknown Exits Taken 5 | 1 1 1 1 1 . Scrap Searched 1 | . . . . 1 . Spaces Dug . | . . . . . . Terrain Destroyed 8 | . 8 . . . . Melee . | . . . . . . Projectile . | . . . . . . AOE 8 | . 8 . . . . Terrain Rammed . | . . . . . . Walls Destroyed . | . . . . . . Machines Disabled . | . . . . . . Actions | -11 -10 -10 -10 -9 -8 --------- Run | Scr Mat Min Exi Min Mat Total 2108 | 5 613 20 284 191 995 Wait 61 | 5 12 . . . 44 Move 1824 | . 526 20 283 174 821 Hop . | . . . . . . Pick Up 26 | . 17 . 1 . 8 Fast Attach 20 | . 5 . . 1 14 Attach 19 | . 5 . . 1 13 Detach 1 | . . . . 1 . Swap 12 | . 2 . . . 10 Drop 43 | . 14 . . 1 28 Fire 100 | . 31 . . 13 56 Melee . | . . . . . . Ram 2 | . 1 . . . 1 Kick . | . . . . . . Crush . | . . . . . . Escape Stasis . | . . . . . . Rewire . | . . . . . . Trap . | . . . . . . Miscellaneous . | . . . . . . Route ------- -11/Scrapyard -10/Materials (discovered 2 exits: [*Min x2]) -10/Mines -10/Exiles -9/Mines -8/Materials (discovered 1 exit: [*Fac]) History --------- Turn | Location | Event 6 | -11/Scrapyard | Discovered new exit (range 0) 6 | -11/Scrapyard | Entered Materials 32 | -10/Materials | Discovered new exit (range 7) 304 | -10/Materials | Build established: Mutant 366 | -10/Materials | Discovered new exit (range 7) 856 | -10/Materials | Entered Mines 872 | -10/Mines | Deemed a non-threat by the Exiles lab entrance 873 | -10/Mines | Discovered new exit (range 5) 880 | -10/Mines | Entered Exiles 922 | -10/Exiles | Met 8R-AWN 948 | -10/Exiles | Met EX-HEX 999 | -10/Exiles | Met EX-BIN 1022 | -10/Exiles | Aligned with FarCom system 1023 | -10/Exiles | Given EX-Vault access code 1059 | -10/Exiles | Opened EX-Vault 1070 | -10/Exiles | Found Superbattery 1095 | -10/Exiles | Warned to stay clear of 0b10 Research branches 1137 | -10/Exiles | Met EX-DEC 1199 | -10/Exiles | Discovered new exit (range 14) 1221 | -10/Exiles | Left Exiles lab with Superbattery 1221 | -10/Exiles | Entered Mines 1450 | -9/Mines | Discovered new exit (range 9) 1461 | -9/Mines | Entered Materials 1461 | -8/Materials | Evolved 4 slots: Propulsion x1, Utility x2, Weapon x1 1517 | -8/Materials | Garrison activated, responded to threat 1754 | -8/Materials | Build established: Skirmisher 2050 | -8/Materials | Discovered new exit (range 16) 2847 | -8/Materials | Self-destructed Last Messages --------------- 02830_ Power failure, Enh. Nuclear Core shutdown. 02830_ R-06 Scavenger collects Corrupted Arm. Treads. 02830_ Critical hit (Burn: +37). 02833_ R-06 Scavenger collects Corrupted Dynamic Insulation System. 02833_ S-10 Pest destroyed. 02833_ R-06 Scavenger destroyed. 02833_ K-01 Serf collects debris. 02836_ Critical hit (Burn: +37). 02836_ K-01 Serf collects debris. 02837_ Imp. Light Armor Plating destroyed. 02838_ K-01 Serf collects debris. 02838_ Arm. Wheel destroyed. 02838_ S-10 Pest destroyed. 02839_ K-01 Serf collects debris. 02841_ Imp. EM Shotgun destroyed. 02841_ K-01 Serf collects debris. 02843_ Overheating: Arm. Wheel damaged (-3). 02843_ K-01 Serf collects debris. 02844_ Arm. Wheel destroyed. 02847_ K-01 Serf collects debris. Map ----- +----------------------------------------------------+ | | | | | ?????????????????????????????????????????????????? | | ?????????????????????????????????????????????????? | | ?????????????????????????????????????????????????? | | ?????????????????????????????????????????????????? | | ?????????????????????????????????????????????????? | | ?????????????????????????????????????????????????? | | ????????????????????????? ???????????????????????? | | ??????????????????w?????? ???????????????????????? | | ?????????????????????????s???????????????????????? | | ????????????????????????? ???????????????????????? | | ???????????????????????## ##?????????????????????? | | ??????????????????????? #?????????????????????? | | ??????????????????????? #?????????????????????? | | ??????????????????????? #?????????????????????? | | ???????????????????????# #?????????????????????? | | ???????????????????????# #????#????????????????? | | ???????????????????????# #??? ?????????????????? | | ????????????# ????????## ### ??????????????????? | | ????????????# ####### != ???????????????????? | | ????????????# g !!!=#????????????????????? | | ????????????# * !s!%#????????????????????? | | ????????????# =%=!%]k#????????????????????? | | ?????????????????###### m==%#????????????????????? | | ??????????????????????## @ ##????????????????????? | | ???????????????????????# k #?????????????????????? | | ???????????????????????# ;#????????????????????? | | ???????????????????????# %##????????????????????? | | ???????????????????????# ##????????????????????? | | ???????????????????????# %##????????????????????? | | ???????????????????????# ##????????????????????? | | ???????????????????????# % #?????????????????????? | | ???????????????????????# #?????????????????????? | | ???????????????????????# Y#?????????????????????? | | ???????????????????????+% #?????????????????????? | | ???????????????????????# #?????????????????????? | | ???????????????????????# %#?????????????????????? | | ???????????????????????# #?????????????????????? | | ???????##??????????????# % #?????????????????????? | | ?????### ###########???# %#??????????#??????????? | | ?????# = ! #???# #???????? ##?????????? | | ?????# """ #???# ###/### #?????????? | | ?????# "Y" !! #???# #?????????? | | ?????# !! #???# #?????????? | | ?????# !! #???# #?????????? | | ?????# %= #???## ###### #?????????? | | ?????#######+#######????# #???????# ##?????????? | | ??######## [ #????????# #????????????????????? | | ??# * #????????# #????????????????????? | +----------------------------------------------------+ Best States ------------- Heat Dissipation 59 Energy Generation 17 Energy Capacity 300 Matter Stores 300 Matter Capacity 300 Sight Range 16 Terrain Scan Density 10 Armor Coverage 300 Evasion (%) 55 Recoil Reduction 1 Item Schematics ----------------- Enh. Nuclear Core | -8/Materials | Scanalyzed Hcp. Storage Unit | -8/Materials | Scanalyzed Arm. Wheel | -8/Materials | Scanalyzed Robot Schematics ------------------ None Fabricated ------------ Nothing Alien Tech Used ----------------- None Achievements -------------- None Challenges ------------ None Game ------ Seed ArmoredMassBeam Manual? 1 Play Time 00:35:45 Cumulative 122.5 hours Start 2022.03.26 @ 12:39:48 End 2022.03.26 @ 13:24:49 Sessions 1 Manual Loads 0 Difficulty Rogue Special Mode None Game No. 57 Rogue 57 Adventurer 0 Explorer 0 Win Type - Total 1 Types 1/0/0/0/0/0/0/0/0 Lore% 31 Gallery% 56 Achievement% 42 Wizard Run 0 Options --------- ASCII 0 Keyboard 0 Movement Arrows Keybinds 0 Fullscreen 1 Font 18/Terminus Map View 76x50 Tactical HUD 1 Map Filters NONE Filters NONE Steam 1 RUN: f37b3df6-f23e-4276-821e-f356073c7bde